[Event "Early-Titled-Tuesday-Blitz-May-07-2024"]
[Site "Chess.com"]
[Date "2024.05.07"]
[Round "2"]
[White "milovichalex"]
[Black "juanchesst"]
[Result "0-1"]
[WhiteElo "2389"]
[BlackElo "2660"]
[TimeControl "180+1"]
[EndTime "8:19:01 PDT"]
[Termination "juanchesst won by checkmate"]

1. e4 {[%clk 0:03:00.9]} 1... c5 {[%clk 0:02:57.9]} 2. Nf3 {[%clk 0:03:00.9]}
2... Nc6 {[%clk 0:02:57.5]} 3. d4 {[%clk 0:03:01.3]} 3... cxd4 {[%clk
0:02:58.4]} 4. Nxd4 {[%clk 0:03:01.8]} 4... Nf6 {[%clk 0:02:59.1]} 5. Nc3 {[%clk
0:03:01.8]} 5... e5 {[%clk 0:02:59.5]} 6. Ndb5 {[%clk 0:03:02.2]} 6... d6 {[%clk
0:02:59.8]} 7. Bg5 {[%clk 0:03:02.5]} 7... a6 {[%clk 0:03:00.4]} 8. Na3 {[%clk
0:03:02.7]} 8... b5 {[%clk 0:03:00.4]} 9. Bxf6 {[%clk 0:03:03.2]} 9... gxf6
{[%clk 0:03:00.5]} 10. Nd5 {[%clk 0:03:03.8]} 10... Bg7 {[%clk 0:02:59.6]} 11.
c3 {[%clk 0:03:02.8]} 11... Ne7 {[%clk 0:02:57.4]} 12. Nc2 {[%clk 0:03:01.6]}
12... Be6 {[%clk 0:02:52]} 13. Nce3 {[%clk 0:03:01.4]} 13... Nxd5 {[%clk
0:02:48.7]} 14. Nxd5 {[%clk 0:03:01.1]} 14... f5 {[%clk 0:02:47.8]} 15. exf5
{[%clk 0:02:59.1]} 15... Bxf5 {[%clk 0:02:46.1]} 16. Bd3 {[%clk 0:02:58]} 16...
Bg6 {[%clk 0:02:45.5]} 17. O-O {[%clk 0:02:49]} 17... O-O {[%clk 0:02:43.8]} 18.
Bxg6 {[%clk 0:02:46.4]} 18... hxg6 {[%clk 0:02:43.2]} 19. a4 {[%clk 0:02:39]}
19... Rb8 {[%clk 0:02:33.2]} 20. axb5 {[%clk 0:02:38.2]} 20... Rxb5 {[%clk
0:02:29.3]} 21. b4 {[%clk 0:01:54]} 21... e4 {[%clk 0:02:13]} 22. Rxa6 {[%clk
0:01:48.7]} 22... Be5 {[%clk 0:02:13.1]} 23. c4 {[%clk 0:01:37.4]} 23... Rb7
{[%clk 0:02:13.2]} 24. Qg4 {[%clk 0:01:31.7]} 24... f5 {[%clk 0:01:53.6]} 25.
Qxg6+ {[%clk 0:01:28.4]} 25... Rg7 {[%clk 0:01:54.1]} 26. Qe6+ {[%clk
0:01:25.8]} 26... Kh8 {[%clk 0:01:53.4]} 27. Ra3 {[%clk 0:01:06.8]} 27... Rh7
{[%clk 0:01:46.6]} 28. h3 {[%clk 0:00:42.3]} 28... f4 {[%clk 0:01:37.8]} 29. Re1
{[%clk 0:00:33.7]} 29... e3 {[%clk 0:01:24.8]} 30. fxe3 {[%clk 0:00:32.1]} 30...
f3 {[%clk 0:01:24.7]} 31. Rf1 {[%clk 0:00:26.5]} 31... Qh4 {[%clk 0:01:05.7]}
32. e4 {[%clk 0:00:16.3]} 32... Qxe4 {[%clk 0:00:56.8]} 33. Qg4 {[%clk
0:00:14.9]} 33... f2+ {[%clk 0:00:54.5]} 34. Rxf2 {[%clk 0:00:14.9]} 34... Qe1+
{[%clk 0:00:54.3]} 35. Rf1 {[%clk 0:00:15.4]} 35... Qxf1# {[%clk 0:00:53.7]} 0-1

[Event "Early-Titled-Tuesday-Blitz-May-07-2024"]
[Site "Chess.com"]
[Date "2024.05.07"]
[Round "2"]
[White "jup1978"]
[Black "Alenzer"]
[Result "1-0"]
[WhiteElo "2488"]
[BlackElo "2229"]
[TimeControl "180+1"]
[EndTime "8:19:04 PDT"]
[Termination "jup1978 won by resignation"]

1. d4 {[%clk 0:03:00.9]} 1... d5 {[%clk 0:02:59.7]} 2. Nf3 {[%clk 0:02:59.8]}
2... Nf6 {[%clk 0:02:59.7]} 3. c4 {[%clk 0:02:59.7]} 3... dxc4 {[%clk
0:02:58.5]} 4. e3 {[%clk 0:02:59.3]} 4... a6 {[%clk 0:02:57.2]} 5. Bxc4 {[%clk
0:02:59.5]} 5... b5 {[%clk 0:02:57.4]} 6. Be2 {[%clk 0:02:57.9]} 6... Bb7 {[%clk
0:02:57.6]} 7. O-O {[%clk 0:02:57.5]} 7... e6 {[%clk 0:02:58]} 8. a4 {[%clk
0:02:53.5]} 8... b4 {[%clk 0:02:55.5]} 9. a5 {[%clk 0:02:52.1]} 9... Nbd7 {[%clk
0:02:52.9]} 10. Nbd2 {[%clk 0:02:52.4]} 10... Be7 {[%clk 0:02:51.1]} 11. Nb3
{[%clk 0:02:52]} 11... O-O {[%clk 0:02:50.5]} 12. Qc2 {[%clk 0:02:50.1]} 12...
Rc8 {[%clk 0:02:48.2]} 13. Rd1 {[%clk 0:02:48.2]} 13... Be4 {[%clk 0:02:38.5]}
14. Bd3 {[%clk 0:02:45.4]} 14... Bb7 {[%clk 0:02:28.8]} 15. Nc5 {[%clk
0:02:44.1]} 15... Nxc5 {[%clk 0:02:17.5]} 16. dxc5 {[%clk 0:02:45]} 16... Qe8
{[%clk 0:02:09.8]} 17. e4 {[%clk 0:02:42.2]} 17... Qc6 {[%clk 0:02:02.6]} 18.
Be3 {[%clk 0:02:35.1]} 18... Nxe4 {[%clk 0:02:00.2]} 19. Nd4 {[%clk 0:02:28.4]}
19... Qxc5 {[%clk 0:01:51]} 20. Bxe4 {[%clk 0:02:26.6]} 20... Bxe4 {[%clk
0:01:38.3]} 21. Qxe4 {[%clk 0:02:23.3]} 21... Qh5 {[%clk 0:01:38.3]} 22. Qc6
{[%clk 0:02:13.4]} 22... Bd6 {[%clk 0:01:34.5]} 23. Nf3 {[%clk 0:02:13.1]} 23...
f5 {[%clk 0:01:19.3]} 24. Bc5 {[%clk 0:02:08.2]} 24... Rfd8 {[%clk 0:00:50.7]}
25. Bxd6 {[%clk 0:02:04.3]} 25... cxd6 {[%clk 0:00:50.9]} 26. Qxa6 {[%clk
0:02:04.2]} 26... e5 {[%clk 0:00:49.4]} 27. Rxd6 {[%clk 0:02:03.2]} 27... e4
{[%clk 0:00:49.7]} 28. Ne5 {[%clk 0:01:49.7]} 28... h6 {[%clk 0:00:19.7]} 29. h3
{[%clk 0:01:42.4]} 29... f4 {[%clk 0:00:17.6]} 30. Rxd8+ {[%clk 0:01:37.8]}
30... Rxd8 {[%clk 0:00:17.9]} 31. Qe6+ {[%clk 0:01:36.6]} 31... Kh7 {[%clk
0:00:18.5]} 32. Nf7 {[%clk 0:01:29.1]} 32... Rd2 {[%clk 0:00:14]} 33. Qxe4+
{[%clk 0:01:24.9]} 33... Kg8 {[%clk 0:00:12.3]} 34. Ne5 {[%clk 0:01:19.1]} 34...
Rxb2 {[%clk 0:00:10.2]} 35. Rc1 {[%clk 0:01:12.4]} 35... Re2 {[%clk 0:00:10.4]}
36. Rc8+ {[%clk 0:01:07.9]} 1-0

[Event "Early-Titled-Tuesday-Blitz-May-07-2024"]
[Site "Chess.com"]
[Date "2024.05.07"]
[Round "2"]
[White "PeshkaCh"]
[Black "Mrlammy"]
[Result "1-0"]
[WhiteElo "2878"]
[BlackElo "2589"]
[TimeControl "180+1"]
[EndTime "8:19:05 PDT"]
[Termination "PeshkaCh won by resignation"]

1. Nf3 {[%clk 0:03:00.9]} 1... d5 {[%clk 0:02:59.9]} 2. d4 {[%clk 0:03:01.4]}
2... Nf6 {[%clk 0:02:59.4]} 3. c4 {[%clk 0:03:01.9]} 3... c6 {[%clk 0:02:59.2]}
4. e3 {[%clk 0:03:01.9]} 4... Bf5 {[%clk 0:02:58.4]} 5. Bd3 {[%clk 0:03:02.1]}
5... Bxd3 {[%clk 0:02:58.2]} 6. Qxd3 {[%clk 0:03:03]} 6... e6 {[%clk 0:02:58.1]}
7. Nbd2 {[%clk 0:03:02.4]} 7... Nbd7 {[%clk 0:02:58.2]} 8. O-O {[%clk
0:03:00.8]} 8... Bd6 {[%clk 0:02:51.9]} 9. e4 {[%clk 0:03:01.1]} 9... dxe4
{[%clk 0:02:51.9]} 10. Nxe4 {[%clk 0:03:02]} 10... Nxe4 {[%clk 0:02:49.1]} 11.
Qxe4 {[%clk 0:03:02.9]} 11... O-O {[%clk 0:02:48.8]} 12. b3 {[%clk 0:03:02.8]}
12... h6 {[%clk 0:02:32.4]} 13. Bb2 {[%clk 0:03:02.7]} 13... Qf6 {[%clk
0:02:18.7]} 14. Qe2 {[%clk 0:02:56.5]} 14... Qf5 {[%clk 0:02:04]} 15. Rad1
{[%clk 0:02:55.9]} 15... Rfe8 {[%clk 0:02:01.6]} 16. Rfe1 {[%clk 0:02:55.6]}
16... Nf6 {[%clk 0:01:58.2]} 17. Ne5 {[%clk 0:02:53.8]} 17... Rad8 {[%clk
0:01:51.9]} 18. Bc3 {[%clk 0:02:46.2]} 18... c5 {[%clk 0:01:25.2]} 19. h3 {[%clk
0:02:39.7]} 19... cxd4 {[%clk 0:00:59.2]} 20. Bxd4 {[%clk 0:02:40.6]} 20... Bb4
{[%clk 0:00:54.2]} 21. Rf1 {[%clk 0:02:38.2]} 21... Qe4 {[%clk 0:00:46.7]} 22.
Qb2 {[%clk 0:02:25.6]} 22... b6 {[%clk 0:00:26.4]} 23. Nf3 {[%clk 0:02:11.9]}
23... Qf5 {[%clk 0:00:22.4]} 24. a3 {[%clk 0:02:10]} 24... Bc5 {[%clk
0:00:22.6]} 25. b4 {[%clk 0:02:04.9]} 25... Bxd4 {[%clk 0:00:22.9]} 26. Nxd4
{[%clk 0:02:05.3]} 26... Qg6 {[%clk 0:00:22.1]} 27. Nc6 {[%clk 0:02:04.3]} 27...
Rxd1 {[%clk 0:00:21.6]} 28. Rxd1 {[%clk 0:02:05.2]} 28... Kh7 {[%clk 0:00:21.2]}
29. Ne5 {[%clk 0:02:02.2]} 29... Qh5 {[%clk 0:00:20.5]} 30. Qc2+ {[%clk
0:01:54.2]} 30... Kg8 {[%clk 0:00:15.9]} 31. Nc6 {[%clk 0:01:54.5]} 31... g6
{[%clk 0:00:11.7]} 32. Nxa7 {[%clk 0:01:51.1]} 32... Kg7 {[%clk 0:00:11.4]} 33.
Nb5 {[%clk 0:01:50.3]} 33... Qe5 {[%clk 0:00:10.7]} 34. Nd6 {[%clk 0:01:49.7]}
34... Rd8 {[%clk 0:00:08]} 35. c5 {[%clk 0:01:41.9]} 35... bxc5 {[%clk
0:00:08.3]} 36. bxc5 {[%clk 0:01:42.8]} 36... Ne4 {[%clk 0:00:05.1]} 37. Nf5+
{[%clk 0:01:24.4]} 37... Qxf5 {[%clk 0:00:01.6]} 38. Rxd8 {[%clk 0:01:24.8]}
38... Qxc5 {[%clk 0:00:01.9]} 39. Qxc5 {[%clk 0:01:16.6]} 39... Nxc5 {[%clk
0:00:02.8]} 40. Rc8 {[%clk 0:01:16.8]} 40... Na4 {[%clk 0:00:03.2]} 41. Rc4
{[%clk 0:01:16.8]} 41... Nb6 {[%clk 0:00:03.5]} 42. Rb4 {[%clk 0:01:17.3]} 42...
Nd5 {[%clk 0:00:03.8]} 43. Rb3 {[%clk 0:01:17]} 1-0

[Event "Early-Titled-Tuesday-Blitz-May-07-2024"]
[Site "Chess.com"]
[Date "2024.05.07"]
[Round "2"]
[White "mitrabhaa"]
[Black "viktorskliarov"]
[Result "0-1"]
[WhiteElo "2925"]
[BlackElo "2635"]
[TimeControl "180+1"]
[EndTime "8:19:06 PDT"]
[Termination "viktorskliarov won by resignation"]

1. d4 {[%clk 0:03:00.9]} 1... Nf6 {[%clk 0:03:00]} 2. Nf3 {[%clk 0:02:54.3]}
2... g6 {[%clk 0:02:59.9]} 3. g3 {[%clk 0:02:53.7]} 3... Bg7 {[%clk 0:03:00.5]}
4. Bg2 {[%clk 0:02:54.6]} 4... O-O {[%clk 0:03:01.4]} 5. O-O {[%clk 0:02:55.5]}
5... c6 {[%clk 0:03:01.5]} 6. c4 {[%clk 0:02:55.1]} 6... d5 {[%clk 0:03:01.9]}
7. cxd5 {[%clk 0:02:55.2]} 7... cxd5 {[%clk 0:03:02.8]} 8. Ne5 {[%clk
0:02:55.9]} 8... Nfd7 {[%clk 0:03:02.1]} 9. Nxd7 {[%clk 0:02:52.1]} 9... Qxd7
{[%clk 0:03:01.7]} 10. Nc3 {[%clk 0:02:52.6]} 10... e6 {[%clk 0:03:00.9]} 11. b3
{[%clk 0:02:52.7]} 11... Nc6 {[%clk 0:02:57.8]} 12. e3 {[%clk 0:02:47]} 12... b6
{[%clk 0:02:58.1]} 13. Ba3 {[%clk 0:02:43.3]} 13... Rd8 {[%clk 0:02:55.9]} 14.
Qd3 {[%clk 0:02:37.1]} 14... Bf8 {[%clk 0:02:46.1]} 15. Bxf8 {[%clk 0:02:35.1]}
15... Rxf8 {[%clk 0:02:47]} 16. Rfc1 {[%clk 0:02:35.4]} 16... Bb7 {[%clk
0:02:36.9]} 17. e4 {[%clk 0:02:16.3]} 17... Nb4 {[%clk 0:02:12.8]} 18. Qd2
{[%clk 0:02:00.8]} 18... dxe4 {[%clk 0:02:11.7]} 19. Nxe4 {[%clk 0:01:46.9]}
19... Bxe4 {[%clk 0:02:10.8]} 20. Bxe4 {[%clk 0:01:47.8]} 20... Nd5 {[%clk
0:02:09.4]} 21. h4 {[%clk 0:01:43.3]} 21... Rad8 {[%clk 0:01:51.9]} 22. Bf3
{[%clk 0:01:30.6]} 22... h5 {[%clk 0:01:38.1]} 23. Re1 {[%clk 0:01:23.6]} 23...
Kg7 {[%clk 0:01:32.9]} 24. Re5 {[%clk 0:00:53.6]} 24... Nf6 {[%clk 0:01:32.3]}
25. Rd1 {[%clk 0:00:52.8]} 25... Qd6 {[%clk 0:01:24]} 26. Qf4 {[%clk 0:00:51.5]}
26... Rc8 {[%clk 0:01:08]} 27. d5 {[%clk 0:00:32.5]} 27... exd5 {[%clk
0:00:41.4]} 28. Bxd5 {[%clk 0:00:32.3]} 28... Rc5 {[%clk 0:00:41.9]} 29. Rg5
{[%clk 0:00:25.5]} 29... Qxf4 {[%clk 0:00:38.3]} 30. gxf4 {[%clk 0:00:24.1]}
30... Rd8 {[%clk 0:00:37.7]} 31. Bf3 {[%clk 0:00:24.7]} 31... Rxd1+ {[%clk
0:00:37.5]} 32. Bxd1 {[%clk 0:00:25.6]} 32... Rc1 {[%clk 0:00:37.7]} 0-1

[Event "Early-Titled-Tuesday-Blitz-May-07-2024"]
[Site "Chess.com"]
[Date "2024.05.07"]
[Round "2"]
[White "Amiciterno"]
[Black "ChessSwole"]
[Result "0-1"]
[WhiteElo "2389"]
[BlackElo "2655"]
[TimeControl "180+1"]
[EndTime "8:19:06 PDT"]
[Termination "ChessSwole won by checkmate"]

1. Nf3 {[%clk 0:03:00.9]} 1... Nf6 {[%clk 0:02:58.2]} 2. e3 {[%clk 0:02:58.7]}
2... d5 {[%clk 0:02:55.3]} 3. c4 {[%clk 0:02:57.6]} 3... e6 {[%clk 0:02:53.4]}
4. Nc3 {[%clk 0:02:57.6]} 4... Be7 {[%clk 0:02:51.5]} 5. b3 {[%clk 0:02:58.2]}
5... dxc4 {[%clk 0:02:48.1]} 6. Bxc4 {[%clk 0:02:53.5]} 6... c5 {[%clk 0:02:49]}
7. Bb2 {[%clk 0:02:49.5]} 7... O-O {[%clk 0:02:48.2]} 8. O-O {[%clk 0:02:49.3]}
8... b6 {[%clk 0:02:47.1]} 9. d4 {[%clk 0:02:45.7]} 9... Bb7 {[%clk 0:02:38.6]}
10. Rc1 {[%clk 0:02:36.6]} 10... cxd4 {[%clk 0:02:28]} 11. Nxd4 {[%clk
0:02:37.5]} 11... Nc6 {[%clk 0:02:16.3]} 12. Nxc6 {[%clk 0:02:26.9]} 12... Bxc6
{[%clk 0:02:17.2]} 13. Qe2 {[%clk 0:02:27.5]} 13... Qb8 {[%clk 0:01:43.9]} 14.
Nb5 {[%clk 0:02:18.4]} 14... Qb7 {[%clk 0:01:36]} 15. f3 {[%clk 0:01:50.7]}
15... Bd5 {[%clk 0:01:27.2]} 16. e4 {[%clk 0:01:00.7]} 16... Bxc4 {[%clk
0:01:23.9]} 17. Rxc4 {[%clk 0:01:01.6]} 17... Rac8 {[%clk 0:01:16.7]} 18. Rfc1
{[%clk 0:01:01.2]} 18... Qa6 {[%clk 0:01:00.4]} 19. a4 {[%clk 0:00:40.5]} 19...
Bc5+ {[%clk 0:00:50.4]} 20. Kh1 {[%clk 0:00:39.7]} 20... Nh5 {[%clk 0:00:38.3]}
21. Qc2 {[%clk 0:00:23.9]} 21... Rcd8 {[%clk 0:00:34.5]} 22. b4 {[%clk
0:00:20.8]} 22... Be3 {[%clk 0:00:34.7]} 23. Rc7 {[%clk 0:00:20.8]} 23... Bxc1
{[%clk 0:00:27.7]} 24. Rxa7 {[%clk 0:00:20.4]} 24... Qxa7 {[%clk 0:00:26.8]} 25.
Nxa7 {[%clk 0:00:21.3]} 25... Bxb2 {[%clk 0:00:27.5]} 26. Qxb2 {[%clk
0:00:22.2]} 26... Rd1# {[%clk 0:00:27.2]} 0-1

[Event "Early-Titled-Tuesday-Blitz-May-07-2024"]
[Site "Chess.com"]
[Date "2024.05.07"]
[Round "2"]
[White "sonicdravise"]
[Black "GM_dmitrij"]
[Result "0-1"]
[WhiteElo "2642"]
[BlackElo "3053"]
[TimeControl "180+1"]
[EndTime "8:19:08 PDT"]
[Termination "GM_dmitrij won by checkmate"]

1. d4 {[%clk 0:03:00.9]} 1... Nf6 {[%clk 0:02:58.1]} 2. c4 {[%clk 0:03:01.1]}
2... g6 {[%clk 0:02:55.4]} 3. Nc3 {[%clk 0:03:01.1]} 3... Bg7 {[%clk 0:02:55.7]}
4. e4 {[%clk 0:03:01.1]} 4... O-O {[%clk 0:02:56.4]} 5. Nf3 {[%clk 0:03:01.7]}
5... d6 {[%clk 0:02:56.9]} 6. Be2 {[%clk 0:03:02.3]} 6... e5 {[%clk 0:02:57.3]}
7. O-O {[%clk 0:03:02.8]} 7... exd4 {[%clk 0:02:57.9]} 8. Nxd4 {[%clk
0:03:02.9]} 8... Re8 {[%clk 0:02:58.8]} 9. f3 {[%clk 0:03:02.6]} 9... c6 {[%clk
0:02:59.1]} 10. Kh1 {[%clk 0:03:01.2]} 10... Nbd7 {[%clk 0:02:58.6]} 11. Bg5
{[%clk 0:03:01]} 11... Qb6 {[%clk 0:02:58.3]} 12. Rb1 {[%clk 0:02:16.9]} 12...
a5 {[%clk 0:02:47.3]} 13. Be3 {[%clk 0:02:05.5]} 13... Nc5 {[%clk 0:02:41.7]}
14. Nb3 {[%clk 0:01:50.5]} 14... Qc7 {[%clk 0:02:17.5]} 15. Nxc5 {[%clk
0:01:45.5]} 15... dxc5 {[%clk 0:02:18.4]} 16. Bxc5 {[%clk 0:01:46]} 16... Rd8
{[%clk 0:02:16.7]} 17. Qe1 {[%clk 0:01:41.5]} 17... Be6 {[%clk 0:02:05.5]} 18.
Qf2 {[%clk 0:01:37.8]} 18... Nd7 {[%clk 0:02:03]} 19. Be3 {[%clk 0:01:26.8]}
19... a4 {[%clk 0:02:00.8]} 20. Nd5 {[%clk 0:01:13.4]} 20... Qa5 {[%clk
0:01:43.3]} 21. Nf4 {[%clk 0:01:03]} 21... Qe5 {[%clk 0:01:40.4]} 22. Nxe6
{[%clk 0:00:57]} 22... Qxe6 {[%clk 0:01:41.3]} 23. Rfd1 {[%clk 0:00:40]} 23...
h5 {[%clk 0:01:35.5]} 24. Rd2 {[%clk 0:00:30.4]} 24... Ne5 {[%clk 0:01:35.5]}
25. Qf1 {[%clk 0:00:13.6]} 25... Rxd2 {[%clk 0:01:24.5]} 26. Bxd2 {[%clk
0:00:14.5]} 26... c5 {[%clk 0:01:25.4]} 27. Bc3 {[%clk 0:00:14.2]} 27... Nc6
{[%clk 0:01:25.4]} 28. Bxg7 {[%clk 0:00:13.7]} 28... Kxg7 {[%clk 0:01:26.3]} 29.
Rd1 {[%clk 0:00:11.1]} 29... Nd4 {[%clk 0:01:26.6]} 30. Qf2 {[%clk 0:00:10.6]}
30... f5 {[%clk 0:01:23.3]} 31. Rxd4 {[%clk 0:00:05]} 31... cxd4 {[%clk
0:01:21.6]} 32. Qxd4+ {[%clk 0:00:05.7]} 32... Qf6 {[%clk 0:01:21.2]} 33. Qd7+
{[%clk 0:00:02.6]} 33... Kh6 {[%clk 0:01:19.2]} 34. Qxb7 {[%clk 0:00:02.7]}
34... Rd8 {[%clk 0:01:16.1]} 35. g3 {[%clk 0:00:01.5]} 35... Rd2 {[%clk
0:01:15.3]} 36. Bf1 {[%clk 0:00:01.6]} 36... Qxb2 {[%clk 0:01:11.3]} 37. Qc8
{[%clk 0:00:00.8]} 37... Rxh2+ {[%clk 0:01:11]} 38. Kg1 {[%clk 0:00:01.3]} 38...
Qf2# {[%clk 0:01:11.9]} 0-1

[Event "Early-Titled-Tuesday-Blitz-May-07-2024"]
[Site "Chess.com"]
[Date "2024.05.07"]
[Round "2"]
[White "NovakCabarkapa"]
[Black "RojonR"]
[Result "1-0"]
[WhiteElo "2753"]
[BlackElo "2541"]
[TimeControl "180+1"]
[EndTime "8:19:08 PDT"]
[Termination "NovakCabarkapa won by checkmate"]

1. d4 {[%clk 0:03:00.9]} 1... Nf6 {[%clk 0:02:59.7]} 2. Nc3 {[%clk 0:03:01]}
2... d5 {[%clk 0:02:59.5]} 3. Bf4 {[%clk 0:03:01.6]} 3... a6 {[%clk 0:02:59.8]}
4. e3 {[%clk 0:03:01.9]} 4... e6 {[%clk 0:02:59.3]} 5. g4 {[%clk 0:03:02.5]}
5... c5 {[%clk 0:02:59.5]} 6. g5 {[%clk 0:03:02.2]} 6... Nfd7 {[%clk 0:02:58.6]}
7. Qf3 {[%clk 0:03:02.9]} 7... b5 {[%clk 0:02:57.5]} 8. O-O-O {[%clk 0:03:00.2]}
8... b4 {[%clk 0:02:47.5]} 9. Nxd5 {[%clk 0:02:46.2]} 9... exd5 {[%clk
0:02:33.1]} 10. Qxd5 {[%clk 0:02:47.1]} 10... Qb6 {[%clk 0:02:22]} 11. Bc4
{[%clk 0:02:28.3]} 11... Bb7 {[%clk 0:02:05.4]} 12. Qxf7+ {[%clk 0:02:25.6]}
12... Kd8 {[%clk 0:02:05.8]} 13. Bxb8 {[%clk 0:02:00.9]} 13... Qg6 {[%clk
0:01:29.5]} 14. Qf4 {[%clk 0:01:56.4]} 14... Bxh1 {[%clk 0:01:00.1]} 15. Qc7+
{[%clk 0:01:41]} 15... Ke7 {[%clk 0:00:48.1]} 16. dxc5 {[%clk 0:01:29.4]} 16...
Qc6 {[%clk 0:00:44.1]} 17. Qf4 {[%clk 0:01:13.3]} 17... Rxb8 {[%clk 0:00:39.2]}
18. Ne2 {[%clk 0:01:13.7]} 18... Bf3 {[%clk 0:00:05.9]} 19. Qf7+ {[%clk
0:01:06.9]} 19... Kd8 {[%clk 0:00:05]} 20. Nd4 {[%clk 0:01:07.6]} 20... Qa4
{[%clk 0:00:02.4]} 21. Bb5 {[%clk 0:00:56.8]} 21... Qxb5 {[%clk 0:00:01.5]} 22.
Nxb5 {[%clk 0:00:54.4]} 22... Bc6 {[%clk 0:00:01.7]} 23. Nd4 {[%clk 0:00:49.9]}
23... Ba4 {[%clk 0:00:01.2]} 24. c6 {[%clk 0:00:37.9]} 24... Bc5 {[%clk
0:00:01.5]} 25. Qxd7# {[%clk 0:00:37]} 1-0

[Event "Early-Titled-Tuesday-Blitz-May-07-2024"]
[Site "Chess.com"]
[Date "2024.05.07"]
[Round "2"]
[White "Juicy_Fork"]
[Black "platy3"]
[Result "0-1"]
[WhiteElo "2417"]
[BlackElo "2865"]
[TimeControl "180+1"]
[EndTime "8:19:08 PDT"]
[Termination "platy3 won on time"]

1. e4 {[%clk 0:02:57]} 1... c5 {[%clk 0:02:58.7]} 2. Nf3 {[%clk 0:02:55.8]} 2...
e6 {[%clk 0:02:59.5]} 3. d4 {[%clk 0:02:56.3]} 3... cxd4 {[%clk 0:03:00.4]} 4.
Nxd4 {[%clk 0:02:56.3]} 4... Nc6 {[%clk 0:03:00.9]} 5. Nc3 {[%clk 0:02:55.7]}
5... Qc7 {[%clk 0:03:01.6]} 6. a3 {[%clk 0:02:55.7]} 6... a6 {[%clk 0:03:01.1]}
7. Be3 {[%clk 0:02:47]} 7... Nf6 {[%clk 0:02:59.2]} 8. f4 {[%clk 0:02:46.7]}
8... d6 {[%clk 0:02:55.4]} 9. Qf3 {[%clk 0:02:45.7]} 9... Bd7 {[%clk 0:02:54.9]}
10. O-O-O {[%clk 0:02:45.5]} 10... Be7 {[%clk 0:02:52.7]} 11. g4 {[%clk
0:02:45.4]} 11... Nxd4 {[%clk 0:02:30.2]} 12. Rxd4 {[%clk 0:02:46.3]} 12... Bc6
{[%clk 0:02:25.3]} 13. g5 {[%clk 0:02:39.3]} 13... Nd7 {[%clk 0:02:23.7]} 14. h4
{[%clk 0:02:02.5]} 14... b5 {[%clk 0:02:18.9]} 15. h5 {[%clk 0:01:54.6]} 15...
Nc5 {[%clk 0:02:10.6]} 16. g6 {[%clk 0:01:45.7]} 16... Bf6 {[%clk 0:02:10.3]}
17. gxf7+ {[%clk 0:01:42.8]} 17... Kxf7 {[%clk 0:02:11.2]} 18. Rg1 {[%clk
0:01:17.9]} 18... Rhf8 {[%clk 0:01:56.9]} 19. f5 {[%clk 0:00:14.5]} 19... Kg8
{[%clk 0:01:46.9]} 20. Qg4 {[%clk 0:00:07]} 20... exf5 {[%clk 0:01:31.2]} 21.
exf5 {[%clk 0:00:07.9]} 21... Rae8 {[%clk 0:01:31.7]} 22. Bf2 {[%clk 0:00:06.1]}
22... h6 {[%clk 0:01:20.2]} 23. Rd1 {[%clk 0:00:02.6]} 23... Ne4 {[%clk
0:01:08.7]} 24. Nxe4 {[%clk 0:00:02.2]} 24... Rxe4 {[%clk 0:01:09.6]} 25. Qg3
{[%clk 0:00:02]} 25... Be5 {[%clk 0:01:03.8]} 26. Qh3 {[%clk 0:00:01.6]} 26...
Rf4 {[%clk 0:00:58.8]} 27. Be3 {[%clk 0:00:00.8]} 27... Rf3 {[%clk 0:00:59.5]}
28. Qg4 {[%clk 0:00:00.4]} 28... Rxe3 {[%clk 0:00:58.6]} 29. f6 {[%clk
0:00:00.5]} 29... Bxf6 {[%clk 0:00:57.6]} 30. Bd3 {[%clk 0:00:01.2]} 30... Bg5
{[%clk 0:00:57.2]} 31. Qg2 {[%clk 0:00:00.8]} 31... Bxg2 {[%clk 0:00:57.4]} 0-1

[Event "Early-Titled-Tuesday-Blitz-May-07-2024"]
[Site "Chess.com"]
[Date "2024.05.07"]
[Round "2"]
[White "mind1mover"]
[Black "FoggyMorning"]
[Result "1-0"]
[WhiteElo "2905"]
[BlackElo "2608"]
[TimeControl "180+1"]
[EndTime "8:19:13 PDT"]
[Termination "mind1mover won by checkmate"]

1. e4 {[%clk 0:03:00.9]} 1... e6 {[%clk 0:03:00.1]} 2. d4 {[%clk 0:02:58.8]}
2... d5 {[%clk 0:03:00.5]} 3. exd5 {[%clk 0:02:59.5]} 3... exd5 {[%clk
0:03:01.4]} 4. Nf3 {[%clk 0:03:00.1]} 4... Bd6 {[%clk 0:03:01.5]} 5. c4 {[%clk
0:03:00.4]} 5... Nf6 {[%clk 0:03:01.2]} 6. h3 {[%clk 0:02:55.3]} 6... O-O {[%clk
0:02:48.2]} 7. Be2 {[%clk 0:02:55.2]} 7... dxc4 {[%clk 0:02:47.4]} 8. Nc3 {[%clk
0:02:50.6]} 8... a6 {[%clk 0:02:42.4]} 9. a4 {[%clk 0:02:47]} 9... h6 {[%clk
0:02:31.1]} 10. O-O {[%clk 0:02:46.3]} 10... Be6 {[%clk 0:02:26.4]} 11. Ne5
{[%clk 0:02:41.8]} 11... Nc6 {[%clk 0:02:12]} 12. Nxc6 {[%clk 0:02:32.1]} 12...
bxc6 {[%clk 0:02:12.9]} 13. a5 {[%clk 0:02:25.5]} 13... Rb8 {[%clk 0:02:01]} 14.
Qa4 {[%clk 0:02:21.9]} 14... Bd5 {[%clk 0:01:39.3]} 15. Qa2 {[%clk 0:02:05.1]}
15... Rb3 {[%clk 0:01:22.6]} 16. Bd1 {[%clk 0:01:55.2]} 16... Rb4 {[%clk
0:01:22.6]} 17. Bd2 {[%clk 0:01:54.4]} 17... Rb8 {[%clk 0:01:21]} 18. Be2 {[%clk
0:01:53.4]} 18... Rb3 {[%clk 0:01:00.4]} 19. Rae1 {[%clk 0:01:52.5]} 19... Re8
{[%clk 0:00:58.3]} 20. Bd1 {[%clk 0:01:51.1]} 20... Rb8 {[%clk 0:00:56.3]} 21.
Ba4 {[%clk 0:01:47]} 21... Rxe1 {[%clk 0:00:47.7]} 22. Rxe1 {[%clk 0:01:47.1]}
22... Bb4 {[%clk 0:00:47.9]} 23. Bf4 {[%clk 0:01:18.8]} 23... Bxc3 {[%clk
0:00:38.2]} 24. bxc3 {[%clk 0:01:19.3]} 24... Ne4 {[%clk 0:00:38.9]} 25. Bc2
{[%clk 0:01:03.6]} 25... Nxc3 {[%clk 0:00:24.2]} 26. Qa3 {[%clk 0:01:03.6]}
26... Nb5 {[%clk 0:00:22.7]} 27. Qg3 {[%clk 0:01:03.2]} 27... Kh8 {[%clk
0:00:05.1]} 28. Be5 {[%clk 0:00:59.5]} 28... f6 {[%clk 0:00:05.6]} 29. Qg6
{[%clk 0:00:59.7]} 29... Kg8 {[%clk 0:00:05.1]} 30. Qh7+ {[%clk 0:00:58.3]}
30... Kf8 {[%clk 0:00:04.7]} 31. Bf4 {[%clk 0:00:53.7]} 31... Nxd4 {[%clk
0:00:05.1]} 32. Bg6 {[%clk 0:00:54]} 32... Bg8 {[%clk 0:00:04]} 33. Qh8 {[%clk
0:00:53.9]} 33... Qd5 {[%clk 0:00:03.6]} 34. Bxh6 {[%clk 0:00:52.1]} 34... gxh6
{[%clk 0:00:03.3]} 35. Qxh6# {[%clk 0:00:53]} 1-0